bitfinex/quotes_ETHUSD_20250107
["timestamp","ask_amount","ask_price","bid_price","bid_amount"]
[1736261593319,1.13404477,3626.4,3626.2,0.245]
[1736261593516,1.13404477,3626.3,3626.2,3.0027]
[1736261593918,1.13404477,3626.3,3626.2,4.0558]
[1736261594124,1.13404477,3626.3,3626.2,4.737919]
[1736261594562,1.13404477,3626.3,3626.2,4.492919]
[1736261594716,1.13404477,3626.3,3626.2,4.737919]
[1736261594923,1.13404477,3627.9,3626.5,1.0575]
[1736261595143,1.13404477,3627.9,3627.2,2.75688]
[1736261595379,0.0075,3627.8,3627.3,0.245]
[1736261595519,0.0075,3627.8,3627.3,0.27256641]
[1736261595719,0.0075,3627.8,3627.3,0.245]
[1736261596116,0.29176119,3627.8,3627.2,0.245]
[1736261596322,0.0075,3627.6,3627.2,0.245]
[1736261596772,0.0075,3627.6,3626.8,2.7572]
[1736261596773,0.5575,3627.4,3626.6,2.1084686]
[1736261596917,0.5575,3627.4,3626.9,0.245]
[1736261597121,0.5575,3627.2,3626.9,0.245]
[1736261597565,0.0075,3627.2,3626.9,0.245]
[1736261597730,0.55,3627.3,3626.9,0.245]
[1736261597731,0.0075,3627.3,3626.9,0.245]
[1736261599173,0.5575,3627.1,3626.6,0.239]
[1736261599341,0.5575,3626.9,3626.6,0.239]
[1736261600446,0.5575,3627.3,3626.6,0.239]
[1736261600962,0.0075,3627.3,3626.6,0.239]
[1736261601193,0.0075,3627.4,3626.7,0.02757106]
[1736261601603,0.0075,3627.4,3626.6,2.99639]
[1736261601604,0.5575,3627.4,3626.6,0.239]
[1736261601905,0.5575,3627.2,3626.6,0.239]
[1736261602051,3.31447,3627.2,3626.6,0.239]
[1736261602250,3.31447,3627.2,3626.1,1.0951]
[1736261602482,0.5575,3627.0,3626.2,0.239]
[1736261603589,0.55,3627.2,3626.2,0.239]
[1736261603791,0.0075,3626.7,3625.8,1.0062]
[1736261604091,0.0075,3626.7,3626.1,0.239]
[1736261604288,2.76474,3626.9,3626.1,0.239]
[1736261604473,0.0075,3626.7,3626.1,0.239]
[1736261604889,0.0075,3626.1,3625.1,1.1552547]
[1736261605069,3.346324,3627.1,3625.2,0.239]
[1736261605070,1.6538,3625.9,3625.2,0.239]
[1736261605402,1.6538,3625.9,3625.2,3.025042]
[1736261605561,1.6538,3625.9,3625.2,0.266582]
[1736261605760,1.6538,3625.9,3625.2,0.239]
[1736261606192,1.6538,3625.9,3625.2,0.26658187]
[1736261606496,1.6538,3625.9,3625.2,0.239]
[1736261606961,2.09496,3625.9,3625.2,0.239]
[1736261607757,1.6538,3625.9,3625.3,0.02758186]
[1736261608396,1.6538,3625.9,3625.2,2.99745]
[1736261608606,1.6538,3625.9,3625.2,0.239]
[1736261609793,1.6538,3625.9,3625.3,0.02758056]
[1736261609971,0.0075,3625.9,3625.3,0.02758056]
[1736261610176,0.5575,3626.1,3625.3,3.18905762]
[1736261610694,0.5575,3626.1,3625.4,2.75828]
[1736261610895,0.0075,3626.1,3625.4,0.0075]
[1736261611207,1.0925,3626.6,3625.7,1.1051]
[1736261611411,1.0925,3626.6,3625.6,0.0075]
[1736261611412,0.0075,3626.3,3625.6,0.0075]
[1736261611612,0.0075,3626.3,3625.5,0.0075]
[1736261611911,0.5575,3626.1,3625.3,0.40311706]
[1736261612210,0.0075,3625.8,3625.5,0.239]
[1736261613221,0.0075,3625.8,3624.9,4.1126]
[1736261613386,0.0075,3625.6,3625.0,0.239]
[1736261613890,2.75803,3625.8,3625.0,0.239]
[1736261613891,0.0075,3625.8,3625.0,2.99758]
[1736261614320,0.0075,3625.8,3625.1,0.02758218]
[1736261614626,0.0075,3625.8,3625.0,0.239]
[1736261614998,0.0075,3625.8,3625.1,0.02758218]
[1736261615207,0.0075,3625.8,3625.1,2.78609218]
[1736261615408,0.0075,3625.8,3625.2,0.0075]
[1736261615721,0.5575,3626.2,3625.2,3.16209071]
[1736261615929,0.0075,3626.2,3625.5,2.7582]
[1736261616233,0.0075,3626.2,3625.2,3.16209071]
[1736261616234,0.5575,3626.0,3625.2,3.15459071]
[1736261616413,0.0075,3625.8,3625.1,3.0]
[1736261618539,0.0075,3626.2,3625.0,0.239]
[1736261618714,0.0075,3625.8,3625.0,0.239]
[1736261619117,0.5575,3625.1,3624.8,0.2]
[1736261619494,4.36109,3624.9,3624.8,0.2]
[1736261619694,5.073052,3624.9,3624.8,0.2]
[1736261619901,5.073052,3624.9,3624.6,1.1552547]
[1736261619902,2.75884,3624.7,3624.6,1.1552547]
[1736261620128,2.75884,3624.7,3624.2,2.28382003]
[1736261620129,1.0449,3624.4,3624.2,0.90421003]
[1736261620347,7.35405,3624.3,3624.2,0.90421003]
[1736261620503,8.15781405,3624.3,3624.2,3e-08]
[1736261620699,7.36162,3624.2,3624.1,2.00181141]
[1736261621112,7.36162,3624.2,3622.4,0.239]
[1736261621113,0.0075,3623.6,3622.8,2.30621641]
[1736261621638,2.75967,3623.7,3622.9,3.82160974]
[1736261621639,0.0075,3623.7,3622.9,3.82160974]
[1736261621853,0.0075,3623.7,3623.1,0.0075]
[1736261622045,0.5575,3624.1,3623.1,0.03509654]
[1736261622940,0.5575,3624.1,3623.1,2.79515654]
[1736261623308,0.5575,3624.1,3623.1,2.76756]
[1736261623744,0.5575,3624.1,3623.3,0.0075]
[1736261623905,0.5575,3624.1,3623.4,0.239]
[1736261624510,0.5575,3624.1,3623.4,0.26659496]
[1736261624932,0.5575,3624.1,3623.4,0.239]
[1736261625106,0.5575,3624.1,3623.4,0.26659496]
[1736261626249,1.0037,3624.6,3623.5,6.16209071]
[1736261626407,1.0037,3624.6,3623.7,0.0075]
[1736261626608,0.5575,3624.0,3623.3,0.37233966]
[1736261626855,0.5575,3624.0,3623.3,0.61133966]
[1736261627177,0.0075,3623.8,3622.9,1.0338]
[1736261627325,0.0075,3623.7,3622.9,1.0263]
[1736261627528,0.5575,3623.4,3622.3,6.95156071]
[1736261627741,1.0037,3621.4,3620.9,3.13966617]
[1736261627918,1.0037,3621.4,3619.8,5.66530106]
[1736261627919,2.7625,3619.9,3619.8,3.68810013]
[1736261628119,0.015,3619.3,3616.6,2.76501]
[1736261628322,3.32099,3618.6,3616.3,2.76519]
[1736261628618,3.3213,3618.2,3618.1,2.55e-06]
[1736261628837,12.00299071,3618.2,3618.1,2.55e-06]
[1736261629082,17.10824033,3618.2,3618.1,2.55e-06]
[1736261629363,3.32168,3617.7,3616.1,20.80492437]
[1736261629652,15.00337071,3617.7,3616.1,20.80492437]
[1736261629959,0.0075,3617.0,3615.9,1.1087]
[1736261630165,3.15459071,3616.8,3615.7,0.1769563]
[1736261630453,3.15459071,3616.8,3615.8,0.32357763]
[1736261630631,3.15459071,3616.8,3615.7,0.1769563]
[1736261630632,1.12927452,3616.1,3615.7,0.1769563]
[1736261630827,0.0075,3616.0,3615.7,0.1769563]
[1736261631236,3.48110718,3616.0,3615.3,1.1077]
[1736261631441,3.48110718,3616.0,3615.4,0.02765372]
[1736261631640,3.48110718,3616.0,3615.4,0.02765467]
[1736261631874,1.12927452,3615.8,3615.3,0.293]
[1736261632319,1.12177452,3615.8,3615.7,3.0067]
[1736261632521,1.12177452,3615.8,3615.7,3.0142]
[1736261632877,2.25854905,3616.1,3615.8,2.45657741]
[1736261632878,1.69391178,3616.1,3615.8,2.45657741]
[1736261633184,1.69391178,3616.1,3615.9,0.015]
[1736261633477,1.69391178,3616.1,3616.0,3.32163774]
[1736261633623,0.0075,3617.2,3616.2,2.76533]
[1736261633826,0.0075,3617.0,3616.3,0.294]
[1736261634125,0.25,3617.4,3616.6,2.76499]
[1736261634483,0.0075,3617.3,3616.3,0.294]
[1736261634691,0.0075,3617.3,3616.7,0.02764291]
[1736261634845,0.0075,3617.5,3616.8,0.294]
[1736261635023,0.0075,3617.5,3616.9,0.294]
[1736261635263,0.0075,3617.1,3617.0,0.294]
[1736261635879,0.0075,3617.1,3617.0,0.3015]
[1736261636234,0.0075,3617.1,3617.0,0.0075]
[1736261636535,0.25,3617.2,3617.1,0.0075]
[1736261636859,0.25,3617.4,3617.1,0.0075]
[1736261637666,0.2575,3617.2,3617.1,0.0075]
[1736261638049,0.0075,3617.2,3617.1,0.0075]
[1736261638753,0.0075,3617.1,3616.8,0.294]
[1736261639067,0.0075,3617.1,3616.9,0.32914194]
[1736261640341,0.25,3617.6,3617.0,2.7647]
[1736261640547,0.25,3617.6,3617.1,0.0075]
[1736261641065,0.0075,3617.5,3617.0,0.0075]
[1736261641445,0.0075,3617.5,3617.0,0.3015]
[1736261641673,0.0075,3617.3,3617.0,0.3015]
[1736261641972,0.25,3617.2,3617.0,0.3015]
[1736261642383,0.25,3617.5,3617.1,0.02764383]
[1736261642568,0.25,3617.7,3617.1,0.03514097]
[1736261642771,0.25,3617.6,3617.2,0.294]
[1736261643070,0.2575,3617.6,3617.3,0.305864]
[1736261643270,0.2575,3617.6,3617.2,0.294]
[1736261643455,0.0075,3617.3,3617.2,0.294]
[1736261644049,0.5,3617.6,3617.2,0.294]
[1736261644572,0.0075,3617.5,3617.2,0.294]
[1736261644781,0.0075,3617.5,3617.3,0.0075]
[1736261644976,0.0075,3617.5,3617.3,0.284714]
[1736261645676,0.0075,3617.4,3617.3,0.284714]
[1736261645871,0.0075,3617.4,3617.0,0.0075]
[1736261646077,0.0075,3617.4,3617.3,0.0075]
[1736261647269,0.0075,3617.4,3617.2,0.294]
[1736261647677,0.2575,3617.4,3617.0,0.294]
[1736261647967,0.0075,3616.7,3616.0,2.76546]
[1736261648169,0.0075,3616.7,3615.5,2.76586]
[1736261648170,0.0075,3616.7,3616.1,0.276546]
[1736261648464,0.0075,3616.7,3615.0,5.54]
[1736261648670,0.25,3616.2,3615.4,2.76589]
[1736261649092,0.0075,3616.1,3615.5,0.01383327]
[1736261649308,0.0075,3616.1,3615.6,2.76579]
[1736261649605,0.25,3616.3,3615.8,0.0075]
[1736261649809,0.25,3616.6,3615.9,0.01383327]
[1736261650105,0.25,3616.6,3616.0,2.77291]
[1736261650264,0.25,3616.5,3616.1,0.01382661]
[1736261650469,0.25,3616.5,3616.2,0.0075]
[1736261650669,0.2575,3616.5,3616.2,0.0075]
[1736261650901,0.2575,3616.5,3616.2,0.02132745]
[1736261651291,0.2575,3616.5,3616.0,0.0075]
[1736261651490,0.2575,3616.1,3616.0,0.0075]
[1736261652025,0.0075,3616.0,3615.7,0.0075]
[1736261652175,0.0075,3616.0,3615.7,3.08128851]
[1736261652381,0.0075,3616.0,3615.9,0.0075]
[1736261653129,0.0075,3616.0,3615.3,3.294]
[1736261653130,0.0075,3616.0,3615.3,0.294]
[1736261653268,0.2575,3616.0,3615.6,2.76576]
[1736261653854,0.2575,3616.0,3615.8,2.76562]
[1736261654166,0.0075,3616.0,3615.9,2.76556]
[1736261654504,0.0075,3616.0,3615.4,0.2932]
[1736261655058,0.0075,3616.0,3615.5,0.0075]
[1736261655210,0.25,3615.9,3615.5,2.76584]
[1736261655406,0.2575,3616.0,3615.6,2.77327]
[1736261655724,0.2575,3616.0,3615.7,2.76571]
[1736261655948,0.25549797,3615.9,3615.6,0.0075]
[1736261656252,0.26299797,3615.9,3615.8,2.77313]
[1736261656453,0.0075,3615.9,3615.8,2.77313]
[1736261656653,0.26088287,3615.9,3615.8,3.0781014]
[1736261656938,0.26088287,3615.9,3615.8,0.0075]
[1736261657247,1.07682864,3615.9,3615.8,0.0075]
[1736261657632,1.32682864,3615.9,3615.8,0.0075]
[1736261657835,1.07682864,3615.9,3615.8,0.0075]
[1736261658046,1.32737718,3615.9,3615.7,2.76567]
[1736261658227,0.0075,3615.8,3615.4,0.23218259]
[1736261658554,0.0075,3615.8,3615.4,0.64075285]
[1736261658851,0.2575,3615.8,3615.4,0.64075285]
[1736261659052,0.2575,3615.8,3614.8,2.73560021]
[1736261659053,0.0075,3615.2,3614.8,2.73560021]
[1736261659361,0.0075,3615.2,3614.6,2.76655]
[1736261659523,0.25,3615.5,3615.3,2.76601]
[1736261659849,0.2575,3615.5,3615.4,2.76594]
[1736261660049,0.2575,3615.5,3614.6,0.0075]
[1736261660215,0.2575,3615.5,3615.4,0.4280057]
[1736261661354,0.0075,3615.7,3615.5,0.0075]
[1736261661530,0.25,3615.6,3615.5,0.0075]
[1736261661728,0.2575,3615.6,3615.5,0.0075]
[1736261662119,0.25,3615.4,3615.1,2.76616]
[1736261662321,0.0075,3615.3,3615.2,2.77359]
[1736261662726,0.25,3615.4,3615.2,2.77359]
[1736261663059,0.0075,3615.3,3615.2,2.77359]
[1736261663630,0.0075,3615.7,3615.4,0.0075]
[1736261663832,0.0075,3615.7,3615.6,0.0075]
[1736261664050,0.0075,3615.7,3615.6,2.77329]
[1736261664344,0.25,3616.6,3616.0,0.0075]
[1736261664543,1.36018858,3618.7,3615.6,3.45060403]
[1736261664544,0.25,3616.9,3616.7,2.7649]
[1736261664735,1.7598,3617.2,3616.7,2.76493]
[1736261664934,0.25,3617.1,3616.8,2.75468739]
[1736261665137,0.0075,3617.1,3617.0,0.0075]
[1736261665377,0.25,3617.3,3617.0,0.0075]
[1736261665576,0.25,3617.3,3617.2,0.0075]
[1736261665930,0.0075,3617.2,3616.8,0.0075]
[1736261666150,0.2575,3616.9,3616.8,0.0075]
[1736261666345,0.0075,3616.9,3616.8,2.77237]
[1736261666546,0.2575,3616.9,3616.8,2.77237]
[1736261666751,0.0075,3616.9,3616.8,2.77237]
[1736261666959,0.25,3617.3,3617.0,0.0075]
[1736261667163,0.25,3617.3,3617.0,2.77221]
[1736261667358,0.0075,3617.2,3617.0,2.77221]
[1736261667665,0.2575,3617.0,3616.9,0.0075]
[1736261667891,0.0075,3617.0,3616.9,0.0075]
[1736261668035,0.0075,3617.0,3616.9,2.77229]
[1736261668348,0.25,3617.5,3617.3,0.0075]
[1736261668553,0.25,3617.5,3617.3,2.77198]
[1736261669268,0.0075,3617.4,3617.3,2.77199]
[1736261669676,0.25,3617.6,3617.5,2.77184]
[1736261669829,0.2575,3617.6,3617.5,2.77184]
[1736261670234,3.03454891,3618.6,3617.8,0.0075]
[1736261670235,0.25,3617.9,3617.8,0.0075]
[1736261670469,0.25,3618.3,3617.8,0.0075]
[1736261670736,0.25,3618.3,3618.2,2.7713]
[1736261670935,0.25,3618.4,3618.3,0.0075]
[1736261671171,0.2575,3618.4,3618.3,0.0075]
[1736261671357,0.5,3618.4,3618.3,0.0075]
[1736261671670,0.25,3618.5,3618.4,0.0075]
[1736261671874,0.2575,3618.5,3618.4,0.0075]
[1736261672175,0.2575,3618.5,3617.5,2.76434]
[1736261672176,0.0075,3618.4,3618.3,0.0075]
[1736261672547,0.2575,3618.4,3618.3,0.0075]
[1736261672753,0.2575,3618.4,3618.2,2.7713]
[1736261673457,0.2575,3618.4,3618.1,0.0075]
[1736261673670,0.2575,3618.4,3618.2,0.0075]
[1736261673858,0.2575,3618.4,3617.7,0.304]
[1736261674087,0.2575,3618.4,3617.8,0.606821]
[1736261674252,0.25,3618.6,3617.8,0.606821]
[1736261674452,0.25,3618.6,3618.3,2.76365]
[1736261674853,1.11768858,3618.5,3618.3,2.76365]
[1736261675053,1.01768858,3618.5,3617.9,2.76403]
[1736261675269,1.01768858,3618.5,3618.3,2.7637]
[1736261675579,1.01768858,3618.5,3618.4,2.76365]
[1736261675739,0.25,3618.6,3618.4,2.76365]
[1736261676241,0.0075,3618.5,3618.4,2.76365]
[1736261676381,0.0075,3618.5,3618.4,2.77115]
[1736261676561,1.94391178,3618.8,3618.5,0.0075]
[1736261676764,1.69391178,3618.9,3618.8,0.0075]
[1736261676951,1.70141178,3618.9,3618.8,0.0075]
[1736261677151,1.95141178,3618.9,3618.8,0.0075]
[1736261677347,1.70141178,3618.9,3618.8,2.77084]
[1736261677779,1.70141178,3618.9,3618.8,3.3652515]
[1736261678299,0.0075,3618.9,3618.8,3.3652515]
[1736261678865,0.9419927,3619.1,3619.0,2.77069]
[1736261679701,0.0075,3619.3,3619.1,0.0075]
[1736261679869,0.0075,3619.3,3619.2,2.77054]
[1736261680071,1.69391178,3620.2,3619.6,0.0075]
[1736261680072,0.25,3619.8,3619.6,0.0075]
[1736261680410,0.0075,3619.7,3619.6,0.0075]
[1736261680954,0.25,3619.9,3619.7,0.0075]
[1736261681172,0.25,3619.9,3619.8,2.77008]
[1736261681467,0.2575,3619.9,3619.8,0.0075]
[1736261682400,0.265,3619.9,3619.8,0.0075]
[1736261682601,1.92817654,3619.9,3619.8,0.0075]
[1736261682999,1.893644,3619.9,3619.8,0.0075]
[1736261683363,0.5075,3619.9,3619.8,0.0075]
[1736261684835,0.2575,3619.9,3619.8,0.0075]
[1736261685136,0.5075,3619.9,3619.8,0.0075]
[1736261685841,0.2575,3619.9,3619.8,0.0075]
[1736261686436,0.5075,3619.9,3619.8,0.0075]
[1736261686642,0.2575,3619.9,3619.8,0.0075]
[1736261687145,0.0075,3619.9,3619.8,2.77008]
[1736261688011,0.5075,3619.9,3619.8,0.0075]
[1736261689008,0.2575,3619.9,3619.8,0.0075]
[1736261689228,0.2575,3619.9,3619.8,2.77008]
[1736261689229,0.0075,3619.9,3619.8,2.77008]
[1736261690127,0.5,3620.1,3619.8,2.77008]
[1736261690128,0.25,3620.1,3620.0,2.76993]
[1736261690814,0.25,3620.3,3620.1,2.76985]
[1736261690815,0.0075,3620.2,3620.1,2.76985]
[1736261691053,0.25,3620.5,3620.4,2.76962]
[1736261691267,0.2575,3620.5,3620.4,0.0075]
[1736261692327,0.5075,3620.5,3620.4,0.0075]
[1736261693157,0.5075,3620.5,3620.4,2.76962]
[1736261693158,0.0075,3620.5,3620.4,2.76962]
[1736261693451,0.5,3620.8,3620.5,2.7695]
[1736261693953,0.0075,3620.5,3620.3,2.76218]
[1736261694249,1.1735,3621.1,3620.1,0.288]
[1736261694250,0.2575,3620.3,3620.1,0.288]
[1736261694756,0.2575,3620.3,3620.2,0.0075]
[1736261695345,0.2575,3620.3,3619.7,0.288]
[1736261695545,0.0075,3619.9,3619.8,2.77008]
[1736261695851,0.25,3620.1,3619.8,0.0075]
[1736261696058,0.5,3620.1,3619.9,2.76243]
[1736261696551,0.0075,3620.0,3619.9,2.76243]
[1736261698260,0.0075,3620.0,3619.9,0.0075]
[1736261700146,0.0075,3620.0,3619.9,2.77]
[1736261700664,0.0075,3620.0,3619.9,0.0075]
[1736261700665,0.015,3620.0,3619.9,0.0075]
[1736261701342,1.3153,3620.0,3619.9,0.0075]
[1736261701548,1.773071,3620.0,3619.9,0.0075]
[1736261702062,1.3153,3620.0,3619.9,0.0075]
[1736261702432,0.015,3620.0,3619.9,0.0075]
[1736261703058,0.0075,3620.0,3619.9,0.0075]
[1736261704060,0.015,3620.0,3619.9,0.0075]
[1736261704276,1.3459,3620.0,3619.9,0.0075]
[1736261704440,1.53049,3620.0,3619.9,0.0075]
[1736261706602,1.53049,3620.0,3619.4,2.76286]
[1736261706603,0.5075,3619.5,3619.4,2.76286]
[1736261706762,0.5075,3619.5,3619.3,0.273]
[1736261707284,0.2575,3619.3,3619.2,3.03601]
[1736261707809,0.0075,3619.3,3619.2,3.03601]
[1736261708087,0.5,3619.5,3619.4,2.76288]
[1736261708391,0.0075,3619.7,3619.5,2.76279]
[1736261708555,0.0075,3619.7,3619.6,0.0075]
[1736261708748,0.0075,3619.7,3619.6,2.77023]
[1736261709775,0.5,3620.0,3619.9,0.0075]
[1736261710601,0.5075,3620.0,3619.9,0.0075]
[1736261710750,0.5075,3620.0,3619.9,2.77]
[1736261711272,0.5,3620.2,3620.1,0.0075]
[1736261711456,0.515,3620.2,3620.1,0.0075]
[1736261712648,1.7556,3620.2,3620.1,0.0075]
[1736261712874,1.9346131,3620.2,3620.1,0.0075]
[1736261713387,4.6968831,3620.2,3620.1,0.0075]
[1736261713815,4.73141408,3620.2,3620.1,0.0075]
[1736261714289,5.28141408,3620.2,3618.7,2.76341]
[1736261714488,0.25,3618.4,3617.5,1.15112453]
[1736261714687,0.25,3618.4,3618.0,2.76393]
[1736261714993,1.2279,3619.1,3617.9,0.273]
[1736261714994,0.25,3618.0,3617.9,0.273]
[1736261715691,0.0075,3618.1,3618.0,0.0075]
[1736261716185,0.2575,3618.1,3618.0,0.0075]
[1736261716509,0.0075,3617.8,3617.7,0.273]
[1736261716665,0.0075,3617.8,3617.6,0.0075]
[1736261717752,0.25,3617.3,3616.8,3.17327503]
[1736261718081,0.25,3617.3,3617.0,0.273]
[1736261718282,0.5,3617.1,3617.0,0.273]
[1736261718607,0.5,3617.1,3617.0,0.2805]
[1736261718799,0.515,3617.1,3617.0,0.2805]
[1736261718954,0.515,3617.1,3617.0,0.0075]
[1736261719713,0.25,3617.3,3617.1,0.0075]
[1736261719916,0.25,3617.6,3617.5,2.77184]
[1736261721192,0.2575,3617.6,3617.5,0.0075]
[1736261722292,0.265,3617.6,3617.5,0.0075]
[1736261722792,1.4737,3617.6,3617.5,0.0075]
[1736261723012,4.23796,3617.6,3617.5,0.0075]
[1736261723151,4.72131158,3617.6,3617.5,0.0075]
[1736261723589,1.922496,3617.6,3617.5,0.0075]
[1736261724093,5.236756,3617.6,3617.5,0.0075]
[1736261725263,5.2713127,3617.6,3617.5,0.0075]
[1736261725465,5.236756,3617.6,3617.5,0.0075]
[1736261725989,5.27131256,3617.6,3617.5,0.0075]
[1736261726862,4.72131256,3617.6,3617.5,0.0075]
[1736261727305,4.72131256,3617.6,3616.4,3.17327503]
[1736261727306,0.25,3616.8,3616.6,2.76495]
[1736261727595,0.5,3616.8,3616.7,3.3861725]
[1736261728497,0.25,3616.8,3616.7,3.3861725]
[1736261728699,0.5,3616.8,3616.7,3.3861725]
[1736261729401,0.0075,3616.9,3616.8,0.0075]
[1736261729606,0.25,3617.0,3616.8,2.77237]
[1736261729764,0.25,3617.3,3617.2,2.77206]
[1736261729963,0.25,3617.4,3617.3,0.0075]
[1736261730208,1.5166,3617.4,3617.3,0.0075]
[1736261730382,0.25,3617.1,3617.0,2.51235993]
[1736261730703,0.5,3617.1,3617.0,5.27705993]
[1736261730903,0.5,3617.1,3617.0,5.93476592]
[1736261731398,0.5075,3617.1,3617.0,3.17006592]
[1736261731823,1.7276,3617.1,3617.0,0.0075]
[1736261732105,4.49224,3617.1,3617.0,0.0075]
[1736261732310,1.7276,3617.1,3617.0,0.0075]
[1736261732607,0.2575,3617.1,3617.0,0.0075]
[1736261732908,0.5075,3617.1,3617.0,2.77222]
[1736261733125,0.2575,3617.1,3617.0,3.45754799]
[1736261733621,0.5,3617.4,3617.3,0.0075]
[1736261734467,0.5,3617.4,3617.2,0.0075]
[1736261735402,0.25,3617.2,3617.1,0.0075]
[1736261735713,0.5,3617.2,3616.9,0.274]
[1736261735926,0.25,3617.0,3616.9,0.274]
[1736261736130,0.5,3617.2,3616.9,3.57583798]
[1736261736417,0.0075,3617.1,3617.0,2.77221]
[1736261737639,0.2575,3617.1,3617.0,0.2715]
[1736261737806,0.0075,3617.1,3617.0,0.2715]
[1736261738003,0.0075,3617.1,3617.0,0.79887332]
[1736261738205,0.25,3617.2,3617.0,0.79887332]
[1736261738557,0.25,3617.2,3617.1,2.77214]
[1736261739333,0.2575,3617.2,3617.1,0.0075]
[1736261740207,0.25,3617.2,3617.1,0.0075]
[1736261740614,0.2575,3617.2,3617.1,0.0075]
[1736261741951,0.25,3617.2,3617.1,2.77214]
[1736261742248,0.25,3617.2,3617.1,3.39280852]
[1736261747360,1.8465,3617.2,3617.1,0.0075]
[1736261747789,1.8315,3617.6,3617.2,0.0075]
[1736261748004,0.5,3617.8,3617.4,3.17048519]
[1736261748277,0.5,3617.8,3617.5,0.0075]
[1736261748482,0.515,3617.8,3617.7,2.77168]
[1736261748666,0.515,3617.8,3617.7,0.0075]
[1736261753210,4.87641394,3617.8,3617.7,0.0075]
[1736261753364,5.36405533,3617.8,3617.7,0.0075]
[1736261754770,5.10555139,3617.8,3617.7,0.0075]
[1736261755979,0.015,3617.7,3617.0,0.264]
[1736261756193,0.015,3617.1,3617.0,0.264]
[1736261757566,0.25,3617.2,3617.0,0.264]
[1736261757567,0.5,3617.2,3617.0,0.264]
[1736261757891,0.5,3617.2,3617.1,0.27683671]
[1736261758064,0.0075,3617.1,3617.0,0.264]
[1736261758684,0.0075,3617.1,3617.0,0.0075]
[1736261760366,0.515,3616.3,3616.2,1.15239457]
[1736261760593,1.8306,3616.3,3616.2,1.15239457]
[1736261760807,4.77891,3616.3,3616.2,1.15239457]
[1736261761869,4.77891,3616.3,3616.0,0.0075]
[1736261761870,0.265,3616.1,3616.0,0.0075]
[1736261762093,3.03041,3616.1,3616.0,0.0075]
[1736261762819,6.53572757,3616.1,3616.0,0.0075]
[1736261763722,6.78572757,3616.1,3616.0,0.0075]
[1736261764029,4.27963272,3616.1,3616.0,0.0075]
[1736261764312,4.82963272,3616.1,3616.0,0.0075]
[1736261764518,6.09783272,3616.1,3616.0,0.0075]
[1736261766116,8.45969832,3616.1,3616.0,0.0075]
[1736261767302,7.04257896,3616.1,3616.0,0.0075]
[1736261767509,12.54694602,3616.1,3616.0,0.0075]
[1736261769537,15.10163236,3616.1,3616.0,0.0075]
[1736261770133,15.10163236,3616.1,3614.1,0.00822266]
[1736261770134,0.0075,3614.5,3614.1,0.00822266]
[1736261770341,0.265,3614.2,3613.9,0.5647913]
[1736261770506,0.25,3614.3,3614.2,1.3283]
[1736261770699,0.515,3614.3,3614.2,1.3283]
[1736261772233,0.0075,3614.2,3614.0,0.0075]
[1736261773636,0.0075,3613.8,3613.5,2.50436706]
[1736261773962,0.25,3613.7,3613.5,1.2248]
[1736261774090,0.265,3613.6,3613.5,0.249]
[1736261774296,0.515,3613.3,3613.2,3.72916706]
[1736261774597,0.0075,3613.2,3613.1,0.635]
[1736261774793,0.0075,3613.2,3613.1,0.6425]
[1736261775736,0.25,3613.5,3613.2,2.77512]
[1736261775936,0.5,3613.6,3613.5,0.0075]
[1736261776095,0.5075,3613.6,3613.5,0.0075]
[1736261777298,3.65112276,3615.5,3613.1,0.884]
[1736261777299,0.015,3613.2,3613.1,0.884]
[1736261778165,0.015,3613.2,3613.1,0.6425]
[1736261778484,2.78262,3613.2,3613.1,0.6425]
[1736261778962,3.110882,3613.2,3613.1,0.6425]
[1736261779283,1.2865,3612.1,3612.0,0.1769563]
[1736261779422,0.25,3612.2,3612.0,2.68132336]
[1736261779622,0.5,3612.2,3612.0,2.68132336]
[1736261779862,0.015,3612.1,3612.0,0.1769563]
[1736261780020,0.25,3612.2,3612.0,0.1769563]
[1736261780223,0.25,3612.1,3612.0,0.1844563]
[1736261780626,0.2575,3612.1,3612.0,0.1844563]
[1736261781536,3.24024752,3612.1,3612.0,0.1844563]
[1736261782266,4.51514752,3612.1,3612.0,0.1844563]
[1736261782846,7.51514752,3612.1,3612.0,6.3e-06]
[1736261783175,7.51514752,3612.1,3611.0,8.79742426]
[1736261783176,0.25,3611.1,3611.0,8.79742426]
[1736261783397,0.565,3612.0,3608.9,1.05239966]
[1736261783398,0.5,3609.0,3608.9,1.05239966]
[1736261783667,0.5,3609.0,3608.4,0.1769563]
[1736261783668,0.25,3608.5,3608.4,0.1769563]
[1736261784105,0.28463986,3608.5,3608.4,0.1769563]
[1736261784382,0.5,3608.5,3608.4,0.1769563]
[1736261784543,0.2425,3608.5,3608.4,0.1769563]
[1736261784871,0.4925,3608.5,3608.4,0.1769563]
[1736261785237,0.2425,3607.1,3607.0,5.51e-06]
[1736261785440,0.2425,3607.2,3607.1,2.77231]
[1736261785639,0.03465124,3607.9,3607.1,2.77231]
[1736261785640,0.4925,3607.9,3607.2,1.3207]
[1736261785827,0.2425,3607.9,3607.7,3.18177793]
[1736261786027,0.25,3608.0,3607.9,2.77167]
[1736261786264,0.235,3608.5,3608.3,2.77131]
[1736261786466,0.485,3608.9,3608.4,4.2145]
[1736261786626,1.26203483,3610.2,3608.4,4.2145]